bitfinex-derivatives/quotes_ETHF0:USTF0_20251210
["timestamp","ask_amount","ask_price","bid_price","bid_amount"]
[1765375812643,3.21128091,3324.7,3324.6,2.31061198]
[1765375813243,1.04168091,3324.7,3324.6,2.31061198]
[1765375815034,0.00348091,3324.7,3324.6,2.31061198]
[1765375816448,3.2078,3325.2,3325.1,2.30827]
[1765375816944,3.2078,3325.6,3325.5,2.93785]
[1765375817143,4.246,3325.6,3325.5,2.93785]
[1765375817443,3.21100683,3325.6,3325.5,2.93785]
[1765375817741,5.30590683,3325.6,3325.5,2.93785]
[1765375818144,4.24920683,3325.6,3325.5,2.93785]
[1765375821241,5.30590683,3325.6,3325.5,2.93785]
[1765375821644,5.30590683,3325.6,3325.5,2.30825]
[1765375822838,5.30590683,3325.6,3325.5,2.93785]
[1765375823349,5.30590683,3325.6,3325.5,2.30825]
[1765375826653,5.30590683,3325.6,3325.5,3.81525198]
[1765375827851,5.30590683,3325.6,3325.5,4.41495198]
[1765375828047,5.20180683,3325.6,3325.5,4.41495198]
[1765375829657,5.20180683,3325.6,3325.5,3.81525198]
[1765375830453,4.24920683,3325.6,3325.5,4.41495198]
[1765375830955,5.20180683,3325.6,3325.5,4.41495198]
[1765375831150,4.24920683,3325.6,3325.5,4.41495198]
[1765375831346,3.21100683,3325.6,3325.5,4.41495198]
[1765375833252,4.21470683,3325.6,3325.5,4.41495198]
[1765375833452,5.16730683,3325.6,3325.5,0.15035]
[1765375833654,6.67430881,3325.6,3325.5,0.15035]
[1765375833845,5.16730683,3325.6,3325.5,0.15035]
[1765375834552,5.16730683,3325.6,3325.2,1.50700198]
[1765375834553,1.9563,3325.1,3325.0,1.9469]
[1765375834744,1.9563,3325.1,3325.0,2.5466]
[1765375835448,3.21100683,3325.6,3325.3,1.0012]
[1765375835653,3.21100683,3325.6,3325.5,4.05360198]
[1765375836652,3.21100683,3325.6,3325.5,4.20395198]
[1765375837551,0.00320683,3325.6,3325.5,4.20395198]
[1765375838455,0.00450647,3325.8,3325.7,2.09724]
[1765375838662,0.00450647,3325.8,3325.7,5.11124396]
[1765375839154,0.00450647,3325.8,3325.7,3.60424198]
[1765375839355,0.00799432,3325.8,3325.7,3.60424198]
[1765375841662,3.2078,3326.4,3326.3,2.09721]
[1765375841864,4.2115,3326.4,3326.3,3.60421198]
[1765375842057,5.1641,3326.4,3326.3,3.60421198]
[1765375842457,5.1641,3326.4,3326.3,0.15031]
[1765375842655,5.16696775,3326.4,3326.3,0.15031]
[1765375845063,4.21436775,3326.4,3326.3,2.09721]
[1765375845365,3.21066775,3326.4,3326.3,2.09721]
[1765375847169,0.00286775,3326.4,3326.3,2.09721]
[1765375848258,1.00656775,3326.4,3326.3,2.09721]
[1765375848567,1.95916775,3326.4,3326.3,0.15031]
[1765375848768,5.16696775,3326.4,3326.3,0.15031]
[1765375851875,5.16696775,3326.4,3326.3,2.09721]
[1765375852274,5.16696775,3326.4,3326.3,0.15031]
[1765375855068,4.21436775,3326.4,3326.3,2.09721]
[1765375855375,5.16696775,3326.4,3326.3,2.09721]
[1765375855681,3.21066775,3326.4,3326.3,4.40209119]
[1765375855972,5.16696775,3326.4,3326.3,4.40209119]
[1765375858674,5.16696775,3326.4,3326.3,2.09721]
[1765375859878,5.16696775,3326.4,3326.3,1.09601]
[1765375862277,5.16696775,3326.4,3326.3,0.15031]
[1765375864371,1.7066,3326.1,3326.0,0.00450647]
[1765375865280,2.55846916,3326.1,3326.0,0.00450647]
[1765375867968,2.55846916,3326.1,3325.7,0.15034]
[1765375867969,1.7076,3325.8,3325.7,0.15034]
[1765375868279,4.9154,3325.8,3325.7,0.15034]
[1765375876483,2.2199,3325.5,3325.4,0.00450647]
[1765375879585,0.8939,3325.5,3325.4,1.70120647]
[1765375879786,4.9154,3325.8,3325.7,0.8769]
[1765375879986,5.78738223,3325.8,3325.6,1.46917219]
[1765375880287,1.7076,3325.7,3325.6,1.46917219]
[1765375881394,1.7076,3325.7,3325.6,2.49642219]
[1765375882089,1.7076,3325.7,3325.6,3.31622219]
[1765375883786,3.2078,3325.8,3325.7,1.84704]
[1765375884091,4.9154,3325.8,3325.7,1.02724]
[1765375884496,4.9154,3325.8,3325.7,1.84704]
[1765375886096,4.9154,3325.8,3325.7,0.15034]
[1765375892800,4.9154,3325.8,3325.4,0.00450647]
[1765375892806,2.0587,3325.5,3325.4,0.00450647]
[1765375893002,2.93702631,3325.5,3325.4,0.00450647]
[1765375893196,1.5822,3325.2,3325.1,0.15037]
[1765375893395,1.5822,3325.2,3324.5,3.3582]
[1765375893396,1.5822,3324.7,3324.5,3.3582]
[1765375893696,1.5822,3324.7,3324.5,0.1504]
[1765375893697,5.66819876,3324.7,3324.5,0.1504]
[1765375894091,4.79,3324.7,3324.5,0.1504]
[1765375896998,4.79,3324.7,3324.5,1.61957219]
[1765375900799,4.79,3324.7,3324.6,1.73801198]
[1765375901401,3.2078,3324.7,3324.6,1.73801198]
[1765375904004,0.00450647,3325.0,3324.9,1.73568]
[1765375904198,0.00450647,3325.0,3324.9,3.20485219]
[1765375904400,4.026,3325.3,3325.2,1.73566]
[1765375904604,0.8182,3325.3,3325.2,3.20483219]
[1765375906008,1.58670647,3325.6,3325.5,2.22845]
[1765375906404,1.58670647,3325.6,3325.5,3.20482219]
[1765375907113,1.58670647,3325.6,3325.5,2.39392219]
[1765375909312,1.58670647,3325.6,3325.5,3.20482219]
[1765375910414,1.58670647,3325.6,3325.5,2.39392219]
[1765375912417,1.58670647,3325.6,3325.5,1.61952219]
[1765375912609,1.58670647,3325.6,3325.5,2.39392219]
[1765375916921,1.58670647,3325.6,3325.5,3.20482219]
[1765375917620,0.82270647,3325.6,3325.5,3.69762219]
[1765375917919,1.58670647,3325.6,3325.5,3.69762219]
[1765375918725,1.58670647,3325.6,3325.5,3.73518112]
[1765375919828,1.58670647,3325.6,3325.5,0.15035]
[1765375922023,1.58670647,3325.6,3325.5,1.04565]
[1765375924228,1.58670647,3325.6,3325.5,1.88975]
[1765375924432,1.58670647,3325.6,3325.5,2.41345]
[1765375925533,0.82270647,3325.6,3325.5,2.41345]
[1765375925734,1.72940647,3325.6,3325.5,2.41345]
[1765375930739,0.82270647,3325.6,3325.5,2.41345]
[1765375931143,1.72940647,3325.6,3325.5,2.41345]
[1765375931445,5.0135,3326.3,3326.2,1.7394]
[1765375931645,4.0789804,3326.3,3326.2,3.39645112]
[1765375931945,3.2078,3326.3,3326.2,3.39645112]
[1765375932243,0.90186775,3326.4,3326.3,1.88972]
[1765375932739,1.75833315,3326.4,3326.3,1.88972]
[1765375933042,2.66503315,3326.4,3326.3,0.15032]
[1765375937938,5.87283315,3326.4,3326.3,0.15032]
[1765375938641,5.87283315,3326.4,3326.3,1.65705112]
[1765375940343,5.87283315,3326.4,3326.3,0.15032]
[1765375943352,5.87283315,3326.4,3326.3,1.65705112]
[1765375943647,5.67963315,3326.4,3326.3,3.24415112]
[1765375943846,4.82316775,3326.4,3326.3,3.24415112]
[1765375946355,3.21066775,3326.4,3326.3,3.24415112]
[1765375946953,4.82316775,3326.4,3326.3,3.24415112]
[1765375947552,4.82316775,3326.4,3326.3,1.65705112]
[1765375949255,4.82316775,3326.4,3326.3,2.45055112]
[1765375950349,4.82316775,3326.4,3326.3,1.65705112]
[1765375951754,4.82316775,3326.4,3326.3,0.15032]
[1765375952454,4.82316775,3326.4,3326.3,1.65705112]
[1765375961164,5.66467097,3326.4,3326.3,1.65705112]
[1765375961463,2.45687097,3326.4,3326.3,1.65705112]
[1765375961668,2.45687528,3326.4,3326.3,3.20045112]
[1765375961961,1.61536775,3326.4,3326.3,3.20045112]
[1765375962357,1.61536775,3326.4,3326.3,1.69372]
[1765375962561,1.61536775,3326.4,3326.3,3.20045112]
[1765375964563,0.00286775,3326.4,3326.3,3.20045112]
[1765375965664,0.80326775,3326.4,3326.3,3.20045112]
[1765375969167,1.61576775,3326.4,3326.3,3.20045112]
[1765375969361,1.61576775,3326.4,3326.3,0.15032]
[1765375969759,5.65069011,3326.4,3326.3,0.15032]
[1765375970561,1.6129,3326.1,3326.0,0.00450647]
[1765375970756,2.44002236,3326.1,3326.0,0.00450647]
[1765375975766,2.44002236,3326.1,3326.0,0.78550647]
[1765375975972,2.44002236,3326.1,3326.0,2.01120647]
[1765375976571,2.44002236,3326.1,3326.0,1.54790647]
[1765375976771,2.44002236,3326.1,3326.0,1.69823647]
[1765375977573,1.6129,3326.1,3326.0,1.69823647]
[1765375978272,1.6129,3326.1,3326.0,0.93583647]
[1765375980075,1.6129,3326.1,3326.0,1.66833647]
[1765375980471,2.4500511,3326.1,3326.0,0.15483647]
[1765375982974,2.4500511,3326.1,3325.3,3.2078]
[1765375982975,1.8538,3325.5,3325.4,0.15036]
[1765375983380,1.8538,3325.5,3325.4,0.89666]
[1765375983582,1.8538,3325.5,3325.4,1.62916]
[1765375983583,1.4315,3325.5,3325.4,1.62916]
[1765375983978,1.8538,3325.5,3325.4,0.15036]
[1765375985380,1.8538,3325.5,3325.4,0.89666]
[1765375985579,0.7415,3325.5,3325.4,1.62916]
[1765375985778,1.8538,3325.5,3325.4,0.15036]
[1765375985977,1.4315,3325.2,3325.1,0.00450647]
[1765375991689,1.4315,3325.2,3325.1,1.42750647]
[1765375992084,1.4315,3325.2,3325.1,0.75080647]
[1765375993384,1.4315,3325.2,3325.1,0.00450647]
[1765375994986,1.4315,3325.2,3325.1,0.68350647]
[1765375995183,1.4315,3325.2,3325.1,0.83387647]
[1765375996087,0.7415,3325.2,3325.1,1.51057647]
[1765375998391,0.6985,3325.4,3325.3,1.50606]
[1765375998691,1.3946,3325.4,3325.3,2.9751108]
[1765376002604,1.3946,3325.4,3325.3,0.15036]
[1765376005911,1.3946,3325.4,3325.3,1.50606]
[1765376006102,1.3946,3325.4,3325.3,0.82936]
[1765376006408,1.3946,3325.4,3325.3,0.15036]
[1765376010104,1.4431,3325.2,3325.1,0.00450647]
[1765376010308,2.26800668,3325.2,3325.1,0.00450647]
[1765376010907,2.26795274,3325.2,3325.1,0.00450647]
[1765376011905,1.4431,3324.7,3324.4,3.2078]
[1765376012206,0.4226,3325.0,3324.0,6.58]
[1765376012207,1.4431,3324.1,3324.0,6.58]
[1765376012415,5.4657656,3324.1,3324.0,6.58]
[1765376013215,5.4657656,3324.1,3324.0,6.5826989]
[1765376014208,4.6509,3324.1,3324.0,6.5826989]
[1765376014719,4.6509,3324.1,3324.0,0.0026989]
[1765376015817,4.6509,3324.1,3324.0,0.7403989]
[1765376016516,4.6509,3324.1,3324.0,0.0026989]
[1765376029522,4.6509,3324.1,3323.7,0.00450647]
[1765376029523,1.4431,3323.8,3323.7,0.00450647]
[1765376029718,1.4431,3323.3,3323.2,0.15045]
[1765376030031,1.4431,3322.7,3322.6,0.15048]
[1765376030329,1.4431,3322.7,3322.6,1.58368]
[1765376030530,1.44580641,3322.7,3322.6,0.15413484]
[1765376030724,1.44580641,3322.7,3322.6,1.58733484]
[1765376031027,0.00270641,3322.7,3322.6,1.58733484]
[1765376031635,4.6509,3323.4,3323.3,1.4332]
[1765376032222,3.9358,3323.4,3323.3,1.4332]
[1765376032728,4.65404053,3323.4,3323.3,1.4332]
[1765376033122,4.65404053,3323.4,3323.0,0.4213]
[1765376033329,1.4431,3322.9,3322.8,0.88817]
[1765376033630,1.4431,3322.9,3322.8,1.58367]
[1765376034226,0.728,3322.9,3322.8,1.58367]
[1765376034624,1.4431,3322.9,3322.8,0.15047]
[1765376035627,1.424,3322.7,3322.6,3.89175484]
[1765376036532,1.424,3322.7,3322.6,3.21145484]
[1765376037032,1.424,3322.7,3322.6,3.89175484]
[1765376037733,0.728,3322.7,3322.6,4.63005484]
[1765376037933,0.728,3322.7,3322.6,6.09910564]
[1765376038235,0.7043,3323.0,3322.9,1.52687]
[1765376038430,0.7043,3323.0,3322.9,2.9959208]
[1765376038829,1.4242,3323.0,3322.9,2.9959208]
[1765376040226,1.845,3323.0,3322.9,0.83077]
[1765376040731,5.0528,3323.0,3322.9,0.15047]
[1765376040934,1.4368,3322.7,3322.6,0.00365484]
[1765376049029,5.0654,3323.0,3322.9,1.3702]
[1765376049229,5.90626525,3323.0,3322.9,0.6741]
[1765376049830,5.90626525,3323.0,3322.9,0.82457]
[1765376050032,5.0654,3323.0,3322.9,0.82457]
[1765376050233,5.89691358,3323.0,3322.9,0.82457]
[1765376051343,5.89691358,3323.0,3322.9,0.15047]
[1765376052740,4.6446,3323.0,3322.9,1.54757]
[1765376055530,3.9247,3323.0,3322.9,1.54757]
[1765376055737,4.5897,3323.0,3322.9,1.54757]
[1765376056242,3.9247,3323.0,3322.9,1.54757]
[1765376056832,3.2078,3323.0,3322.9,1.54757]
[1765376057029,0.00314053,3323.4,3323.3,0.673]
[1765376057030,1.39524053,3323.4,3323.3,0.673]
[1765376057434,1.39524053,3323.4,3323.3,1.3971]
[1765376057937,1.39524053,3323.4,3323.3,1.54755]
[1765376057938,0.73024053,3323.4,3323.3,1.54755]
[1765376058144,0.00314053,3323.4,3323.3,1.54755]
[1765376060746,1.39524053,3323.4,3323.3,1.54755]
[1765376061337,1.3921,3323.1,3323.0,0.673]
[1765376061637,1.3921,3323.1,3323.0,1.3971]
[1765376062846,1.3921,3323.1,3323.0,1.54756]
[1765376063048,0.7271,3323.1,3323.0,1.95806]
[1765376063446,4.60304053,3323.4,3323.3,1.3971]
[1765376063650,3.21094053,3323.4,3323.3,1.54755]
[1765376064750,3.21094053,3323.4,3323.3,3.05632185]
[1765376066153,3.21094053,3323.4,3323.3,1.54755]
[1765376066457,3.21094053,3323.4,3323.3,3.05632185]
[1765376067151,4.60304053,3323.4,3323.3,3.05632185]
[1765376069252,4.60304053,3323.4,3323.3,0.15045]
[1765376069453,4.60304053,3323.4,3323.3,2.38962185]
[1765376070459,4.60304053,3323.4,3323.3,0.15045]
[1765376072250,4.60304053,3323.4,3323.3,0.88085]
[1765376072557,4.60304053,3323.4,3323.3,0.15045]
[1765376073953,4.60304053,3323.4,3323.3,0.88085]
[1765376075261,4.60304053,3323.4,3323.3,1.60895]
[1765376075760,4.60304053,3323.4,3323.3,0.88085]
[1765376076152,4.60304053,3323.4,3323.3,0.15045]
[1765376077261,4.60304053,3323.4,3323.3,0.88085]
[1765376077461,4.60304053,3323.4,3323.3,0.15045]
[1765376086861,6.91444181,3323.4,3323.3,0.15045]
[1765376087363,5.40566996,3323.4,3323.3,0.15045]
[1765376092169,5.40566996,3323.4,3323.3,0.88085]
[1765376092369,5.40566996,3323.4,3323.3,0.15045]
[1765376094268,5.40566996,3323.4,3323.3,0.88085]
[1765376094869,4.60304053,3323.4,3323.3,1.60895]
[1765376096168,3.21094053,3323.4,3323.3,1.60895]
[1765376096372,3.89434053,3323.4,3323.3,1.60895]
[1765376096869,4.61614053,3323.4,3323.3,1.60895]
[1765376099074,4.61614053,3323.4,3323.3,3.11772185]
[1765376100575,4.61614053,3323.4,3323.3,2.38962185]
[1765376101276,3.89434053,3323.4,3323.3,3.11532185]
[1765376101471,3.21094053,3323.4,3323.3,3.11532185]
[1765376101671,1.60945827,3324.4,3324.0,1.8438]
[1765376101672,3.2078,3324.1,3324.0,1.8438]
[1765376101873,3.8759,3324.1,3324.0,1.8438]
[1765376102380,3.2078,3324.1,3324.0,3.50298185]
[1765376102577,3.21074385,3324.1,3324.0,3.50298185]
[1765376102771,0.00294385,3324.1,3324.0,3.46455522]
[1765376103173,0.00294385,3324.1,3324.0,9.46455522]
[1765376103377,0.00450647,3324.4,3324.3,1.55471]
[1765376103595,0.00450647,3324.4,3324.3,3.02505522]
[1765376104293,0.0081735,3324.4,3324.3,3.02505522]
[1765376107195,3.2078,3324.9,3324.8,1.55468]
[1765376107196,0.6681,3324.9,3324.8,1.55468]
[1765376107397,0.6681,3324.9,3324.8,3.02502522]
[1765376107599,1.3758,3324.9,3324.8,3.02502522]
[1765376108094,1.37842164,3324.9,3324.8,3.02502522]
[1765376108690,1.3619,3324.6,3324.5,0.00451331]
[1765376109097,1.3619,3323.8,3323.7,3.2078]
[1765376109300,1.3619,3323.8,3323.7,3.909]
[1765376109498,1.3619,3323.1,3323.0,1.8257]
[1765376110003,1.7631,3323.5,3323.4,0.7012]
[1765376110397,1.3619,3323.4,3323.3,2.17154522]
[1765376110703,1.3619,3323.4,3323.3,0.7012]
[1765376111001,1.3619,3323.3,3323.2,1.53805]
[1765376111199,4.57421331,3323.8,3323.7,1.3876]
[1765376111394,1.36641331,3323.8,3323.7,0.7012]
[1765376112102,1.36641331,3323.8,3323.7,1.3876]
[1765376112800,1.36641331,3323.8,3323.7,0.7012]
[1765376113002,1.3619,3323.7,3323.6,0.15043]
[1765376114403,1.3619,3323.7,3323.6,1.53803]
[1765376114906,1.3619,3323.7,3323.6,0.85163]
[1765376115509,1.3619,3323.7,3323.6,1.53803]
[1765376115707,1.3619,3323.7,3323.6,0.85163]
[1765376117006,1.3619,3323.7,3323.6,1.53803]
[1765376118007,0.6836,3323.7,3323.6,1.53803]
[1765376118215,1.3619,3323.7,3323.6,1.53803]
[1765376119814,3.21231331,3323.8,3323.7,1.53803]
[1765376122103,0.00451331,3323.8,3323.7,4.74583]
[1765376122310,1.36641331,3323.8,3323.7,0.15043]
[1765376122505,1.3619,3323.3,3323.2,3.2078]
[1765376122709,1.3619,3323.3,3323.2,3.909]
[1765376122904,1.3619,3323.3,3323.2,4.74586]
[1765376123105,0.6836,3323.3,3323.2,4.74586]
[1765376123919,1.3619,3323.3,3323.2,4.74586]
[1765376125722,0.6836,3323.3,3323.2,4.74586]
[1765376125922,1.3619,3323.3,3323.2,4.74586]
[1765376130928,1.3619,3323.3,3323.2,3.35826]
[1765376131530,4.5697,3323.3,3323.2,0.15046]
[1765376135333,4.5697,3323.3,3323.2,4.79586]
[1765376135334,0.6836,3323.3,3323.2,4.79586]
[1765376135926,1.4095,3323.3,3323.2,4.79586]
[1765376136127,0.6836,3323.3,3323.2,4.79586]
[1765376137731,0.7324,3323.5,3323.4,1.58804]
[1765376138238,1.4583,3323.5,3323.4,1.58804]
[1765376139936,1.4583,3323.5,3323.4,0.86634]
[1765376140138,1.8668,3323.5,3323.4,0.86634]
[1765376140528,1.8668,3323.5,3323.4,0.15044]
[1765376141726,1.4583,3322.9,3322.8,4.79587]
[1765376141925,0.7324,3322.9,3322.8,4.79587]
[1765376142234,1.4583,3323.1,3323.0,1.58806]
[1765376142435,1.4583,3323.1,3323.0,0.86636]
[1765376142740,1.4583,3323.1,3323.0,0.15046]
[1765376147338,1.4583,3323.1,3323.0,0.86636]
[1765376148038,1.4583,3323.1,3323.0,0.15046]
[1765376153440,2.27612605,3323.1,3323.0,0.15046]
[1765376155546,2.27612605,3323.1,3322.6,1.47545518]
[1765376155547,1.4583,3322.7,3322.6,0.00365484]
[1765376156237,1.4583,3322.7,3322.6,0.87003484]
[1765376156438,1.4583,3322.7,3322.6,0.15413484]
[1765376156740,1.4583,3322.7,3322.6,0.87003484]
[1765376157142,1.4583,3322.7,3322.6,0.15413484]
[1765376157345,1.4583,3322.7,3322.6,1.59173484]
[1765376157642,1.4583,3322.7,3322.6,0.15413484]
[1765376158748,1.4583,3322.7,3322.6,0.87003484]
[1765376159250,1.4583,3322.7,3322.6,0.15413484]
[1765376160446,1.4583,3322.7,3322.6,1.59333484]
[1765376160648,1.3835,3323.0,3322.9,1.58967]
[1765376160951,1.3835,3323.0,3322.9,3.06147034]
[1765376161149,1.3835,3323.0,3322.9,1.58967]
[1765376161349,1.3835,3323.0,3322.9,3.06147034]
[1765376161653,0.6721,3323.0,3322.9,3.06147034]
[1765376161853,4.5913,3323.7,3323.6,1.4392]
[1765376162043,5.40798221,3323.7,3323.5,1.47180034]
[1765376162242,5.40798221,3323.7,3323.5,2.19540034]
[1765376162243,2.20018221,3323.6,3323.5,2.19540034]
[1765376163448,1.3835,3323.3,3323.2,0.15046]
[1765376164751,1.3835,3323.3,3323.2,1.65974896]
[1765376166049,1.3835,3323.3,3323.2,0.15046]
[1765376167262,3.2078,3323.7,3323.4,0.7236]
[1765376167562,1.3835,3323.5,3323.4,1.58965]
[1765376167759,4.5913,3323.7,3323.6,1.4392]
[1765376167957,4.5913,3323.7,3323.6,0.7236]
[1765376168260,4.5913,3323.7,3323.6,2.23288896]
[1765376168561,4.5913,3323.7,3323.6,1.50928896]
[1765376168760,1.4467,3323.6,3323.5,0.85544]
[1765376168962,1.4467,3323.6,3323.5,2.36472896]
[1765376169363,3.9327,3323.7,3323.6,1.57654]
[1765376169565,4.6545,3323.7,3323.6,1.57654]
[1765376169759,0.00451331,3323.8,3323.6,1.57654]
[1765376169958,0.00451331,3323.8,3323.7,3.08581896]
[1765376170357,1.45121331,3323.8,3323.7,0.85543]
[1765376170658,1.45121331,3323.8,3323.7,1.65971896]
[1765376170863,0.00451331,3323.8,3323.7,3.08581896]
[1765376171656,0.72941331,3323.8,3323.7,3.08581896]
[1765376171864,0.72941331,3323.8,3323.7,1.57653]
[1765376172164,0.00451331,3323.8,3323.7,1.57653]
[1765376172356,0.00451331,3323.8,3323.7,3.08581896]
[1765376176560,3.2078,3324.5,3324.4,1.4261]
[1765376176767,3.2078,3324.5,3324.4,2.93538896]
[1765376176965,3.2078,3324.5,3324.4,3.08578896]
[1765376177169,0.00262164,3324.9,3324.8,1.57648]
[1765376177468,1.4467,3325.0,3324.9,0.85537]
[1765376177671,1.4467,3325.0,3324.9,3.08575896]
[1765376178362,0.72775545,3325.0,3324.9,3.08575896]
[1765376178668,1.4467,3324.6,3324.5,0.70951331]
[1765376178866,1.4467,3324.6,3324.5,4.63841331]
[1765376179369,1.4467,3324.6,3324.5,5.08051331]
[1765376179370,0.7249,3324.6,3324.5,5.08051331]
[1765376179867,0.7249,3324.6,3324.5,5.23091331]
[1765376180070,1.4467,3324.6,3324.5,5.23091331]
[1765376180270,1.4467,3324.6,3324.5,4.06771331]
[1765376180571,1.4467,3324.6,3324.5,4.78881331]
[1765376180772,0.7249,3324.6,3324.5,5.23091331]
[1765376182071,1.4467,3324.6,3324.5,5.23091331]
[1765376182371,0.7249,3324.6,3324.5,5.23091331]
[1765376182670,1.44955545,3325.0,3324.9,1.4261]
[1765376182868,1.44955545,3325.0,3324.9,0.705]
[1765376183169,0.7249,3324.6,3324.5,5.23091331]
[1765376183564,1.4467,3324.6,3324.5,5.23091331]
[1765376183768,1.4467,3324.6,3324.5,4.78881331]
[1765376185074,1.4467,3324.6,3324.5,3.36271331]
[1765376185473,1.4467,3324.6,3324.5,4.06771331]
[1765376186281,1.4467,3324.6,3324.5,4.78881331]
[1765376186470,0.7249,3324.6,3324.5,5.23091331]
[1765376187578,0.41145545,3325.0,3324.5,5.23091331]
[1765376187778,1.85815545,3325.0,3324.9,1.4261]
[1765376188175,1.44955545,3325.0,3324.9,1.4261]
[1765376188379,1.45885545,3325.0,3324.9,1.4261]
[1765376189182,1.40615545,3325.0,3324.9,1.57648]
[1765376189980,1.40615545,3325.0,3324.9,4.78428]
[1765376190484,0.67505545,3325.0,3324.9,4.78428]
[1765376190685,0.00285545,3325.0,3324.9,4.78428]
[1765376190885,0.67505545,3325.0,3324.9,4.78428]
[1765376191082,1.80975545,3325.0,3324.9,4.06318]
[1765376191581,1.80975545,3325.0,3324.9,3.35818]
[1765376192483,1.80975545,3325.0,3324.9,4.06478]
[1765376193284,1.80975545,3325.0,3324.9,4.76188]
[1765376194488,1.40615545,3325.0,3324.9,4.76188]
[1765376197790,0.00285545,3325.0,3324.9,4.76188]
[1765376200694,0.67505545,3325.0,3324.9,6.26943847]
[1765376201085,1.40615545,3325.0,3324.9,6.26943847]
[1765376201287,1.80975545,3325.0,3324.9,3.35818]
[1765376201491,1.80975545,3325.0,3324.9,4.06478]
[1765376201693,1.40615545,3325.0,3324.9,4.76188]
[1765376206391,1.40615545,3325.0,3324.9,6.26943847]
[1765376207296,0.00285545,3325.0,3324.9,6.26943847]
[1765376207493,0.00285545,3325.0,3324.9,7.77699694]
[1765376207691,0.00285545,3325.0,3324.9,6.26943847]
[1765376208594,0.00285545,3325.0,3324.9,4.76188]
[1765376208795,0.00285545,3325.0,3324.9,6.26943847]
[1765376210996,0.00285545,3325.0,3324.9,4.76188]
[1765376211194,0.00285545,3325.0,3324.9,6.26943847]
[1765376212195,1.40615545,3325.0,3324.9,6.26943847]
[1765376212898,0.67505545,3325.0,3324.9,6.26943847]
[1765376213297,0.00285545,3325.0,3324.9,7.77699694]
[1765376214003,4.6111,3326.4,3326.3,0.6971]
[1765376214198,5.45045294,3326.4,3326.3,2.91125847]
[1765376214900,5.45283562,3326.4,3326.3,2.91484926]
[1765376215100,0.84173562,3326.4,3326.3,3.06516926]
[1765376215304,0.00238268,3326.4,3326.3,3.06516926]
[1765376216400,0.00238268,3326.4,3326.3,6.27296926]
[1765376216799,4.6111,3327.2,3327.1,1.4037]
[1765376217103,3.2078,3327.7,3327.1,3.06152847]
[1765376217303,1.4033,3327.6,3327.5,1.4037]
[1765376217499,1.4033,3327.6,3327.5,3.31105847]
[1765376217700,0.6722,3327.6,3327.5,3.31105847]
[1765376218006,0.67580611,3327.6,3327.5,3.31105847]
[1765376218305,1.3836,3327.4,3327.3,4.86562847]
[1765376218606,1.3836,3327.4,3327.3,5.53682847]
[1765376218802,1.3836,3327.4,3327.3,4.69657]
[1765376219107,0.71900611,3327.6,3327.5,1.7686]
[1765376219306,1.38720611,3327.6,3327.5,1.7686]
[1765376219605,1.38720611,3327.6,3327.5,0.6712]
[1765376219792,0.71900611,3327.6,3327.5,1.7686]
[1765376220607,1.38720611,3327.6,3327.5,0.6712]
[1765376221107,0.00360611,3327.6,3327.5,4.22226667]
[1765376222003,0.00451331,3327.9,3327.8,1.48875]
[1765376222309,0.00451331,3327.9,3327.8,10.47075]
[1765376223001,0.00678261,3327.9,3327.8,10.47075]
[1765376224407,0.00678261,3327.9,3327.8,1.48875]
[1765376224603,0.00678261,3327.9,3327.8,13.36075]
[1765376225007,1.39038261,3327.9,3327.8,0.15025]
[1765376225207,1.3836,3327.8,3327.7,3.2078]
[1765376225612,1.3836,3327.3,3327.2,3.21231331]
[1765376225808,1.3836,3327.3,3327.2,0.00451331]
[1765376232217,1.3836,3327.3,3327.2,1.39551331]
[1765376232519,4.602,3327.7,3327.6,1.391]
[1765376232720,3.9003,3327.7,3327.6,1.391]
[1765376233018,1.40098261,3327.9,3327.8,1.54125]
[1765376233323,0.00678261,3327.9,3327.8,1.54125]
[1765376233525,0.69928261,3327.9,3327.8,1.54125]
[1765376233917,0.00678261,3327.9,3327.8,1.54125]
[1765376234723,0.69928261,3327.9,3327.8,1.54125]
[1765376234925,0.00678261,3327.9,3327.8,1.54125]
[1765376237530,0.00678261,3327.9,3327.8,13.41525]
[1765376240530,0.00678261,3327.9,3327.8,1.54125]
[1765376240739,0.00678261,3327.9,3327.8,5.79025]
[1765376243928,0.69928261,3327.9,3327.8,1.54125]
[1765376244335,0.00678261,3327.9,3327.8,1.54125]
[1765376244727,1.40098261,3327.9,3327.8,1.54125]
[1765376244927,0.69928261,3327.9,3327.8,1.54125]
[1765376245226,0.00678261,3327.9,3327.8,1.54125]
[1765376245430,0.4036,3329.0,3327.8,1.54125]
[1765376245431,0.79612406,3328.5,3328.4,1.54122]
[1765376245624,0.79612406,3328.5,3328.0,0.4356]
[1765376245625,3.2078,3329.0,3328.9,1.391]
[1765376245832,3.2078,3329.0,3328.9,10.9522]
[1765376246229,3.9003,3329.0,3328.9,10.9522]
[1765376246426,4.602,3329.4,3329.3,0.7055]
[1765376246626,4.00264537,3329.4,3329.3,1.39396942]
[1765376246833,3.21016742,3329.4,3329.3,1.54414942]
[1765376247530,0.00236742,3329.4,3329.3,1.54414942]
[1765376248339,0.00236742,3329.4,3329.3,10.28714942]
[1765376249235,0.00236742,3329.4,3329.3,13.41814942]
[1765376250234,0.69486742,3329.4,3329.3,13.41714942]
[1765376250631,1.42916742,3329.4,3329.3,1.54414942]
[1765376250936,1.42916742,3329.4,3329.3,0.00296942]
[1765376251138,1.4393,3329.1,3329.0,0.00450625]
[1765376251339,1.4393,3328.9,3328.8,3.2078]
[1765376251744,2.21325943,3328.9,3328.8,3.2078]
[1765376251941,1.4393,3328.8,3328.7,0.15021]
[1765376252243,1.4393,3328.8,3328.7,0.86280229]
[1765376252638,3.21016742,3329.4,3328.7,1.53030229]
[1765376252841,1.4393,3328.8,3328.7,1.53030229]
[1765376253845,1.4393,3328.8,3328.7,0.15370229]
[1765376255947,3.21016742,3329.4,3328.7,1.53030229]
[1765376256243,2.21316205,3329.3,3329.2,1.3766]
[1765376256443,1.4393,3329.0,3328.9,1.52679]
[1765376256948,1.8502,3329.0,3328.9,0.15019]
[1765376258541,1.8502,3329.0,3328.7,0.00349229]
[1765376258542,1.4393,3328.8,3328.7,0.00349229]